Cogmind - Beta 16.1 @@@ ROGUE MODE // 2026.03.29 @ 07:01:49 Player: KURIIRI Result: Destroyed by S-43 Plague with Heavy Machine Gun Performance ------------- Evolutions (7) 3500 Regions Visited (18) 3600 Robots Destroyed (303) 1515 Value Destroyed (11521) 11521 Prototype IDs (36) 720 Alien Tech Used (1) 200 Bonus (7695) 7695 TOTAL SCORE: 28751 Bonus ------- High Alert Combat Kills 1242 Follower Combat Kills 2374 Network Hubs Disabled 200 Registered with UFD 300 Met Optimus in HQ 500 Met Zhirov 300 Built Enhanced Grunts 300 A7 Reached Mainframe 300 Met R17 at Cetus 500 Met R17 at Research 2000 Friendly Fire -321 Cogmind --------- Core Integrity 0/1300 Matter 280/300 Energy 5/100 System Corruption 0% Temperature Cool (0) Movement Core (550) Ox10 Location -3/Research Parts ------- > --- POWER (2) -------- (None) > --- PROPULSION (5) --- (None) > --- UTILITY (8) ------ Large Storage Unit Layered Medium Armor Plating Advanced Hacking Suite > --- WEAPON (6) ------- Plasma Rifle > --- INVENTORY (15) --- Improved Deuterium Engine Light Antimatter Reactor Advanced Heat Sink Advanced Cooling System Matter Compressor (250) Advanced Sensor Array Layered Medium Armor Plating Advanced Shield Generator System Restoration Module Peak State ------------ > --- POWER ------------ Light Antimatter Reactor Light Particle Reactor > --- PROPULSION ------- Flexi-carbon Leg Flexi-carbon Leg Enhanced Flexi-carbon Leg Myomer Leg Improved Thunder Leg > --- UTILITY ---------- Advanced Heat Sink Large Storage Unit Machine Analyzer Advanced Sensor Array Improved Target Analyzer Improved Phase Shifter Advanced Hacking Suite System Shield > --- WEAPON ----------- Plasma Rifle Plasma Rifle Plasma Rifle Coil Gun Heavy Machine Gun Power Sword > --- INVENTORY -------- Improved Deuterium Engine Light Antimatter Reactor Flexi-carbon Leg Flexi-carbon Leg Myomer Leg Advanced Heat Sink Advanced Cooling System Matter Compressor Layered Medium Armor Plating Advanced Shield Generator System Restoration Module Field Laser Heavy Laser Compact HERF Cannon Coil Gun [Rating: 119] Favorites ----------- Power Cold Fusion Reactor Engine Cooled Ion Engine Power Core Neutrino Core Reactor Cold Fusion Reactor Propulsion Armored Huge Wheel Treads Light Treads Leg Flexi-carbon Leg Wheel Armored Huge Wheel Hover Unit Cooled Gravmag System Flight Unit Cooled Nuclear Pulse Thruster Utility Large Storage Unit Device Advanced Heat Sink Storage Large Storage Unit Processor Advanced Targeting Computer Hackware Hacking Suite Protection Medium Armor Plating Weapon Plasma Rifle Energy Gun Plasma Rifle Energy Cannon Plasma Cannon Ballistic Gun Advanced KE Penetrator Ballistic Cannon Magnetic Acceleration Cannon Launcher Grenade Launcher Special Weapon Plasma Cutter Impact Weapon Heavy Hammer Slashing Weapon Power Sword Build | -11 -10 -10 -9 -9 -9 -9 -6 -6 -6 -6 -6 -5 -4 -4 -4 -4 -3 -3 ------- Run | Yrd Mat Min Mat Sto Rec Scr Fac Ext Cet Arc Hub Fac Fac Upp Upp Zhi Pro Res Slots Evolved 14 | . . . 2 . . . 6 . . . . 2 2 . . . . 2 Power 1 | . . . . . . . . . . . . . . . . . . 1 Propulsion 3 | . . . . . . . 1 . . . . 1 . . . . . 1 Utility 6 | . . . 2 . . . 3 . . . . . 1 . . . . . Weapon 4 | . . . . . . . 2 . . . . 1 1 . . . . . Parts Attached 248 | 4 7 5 27 8 6 4 24 9 5 11 10 37 29 3 . 5 3 51 Power 23 | . 1 1 2 4 . . 2 . . . 1 4 2 . . . . 6 Engine 12 | . 1 1 2 4 . . 1 . . . . 3 . . . . . . Core 4 | . . . . . . . . . . . 1 1 2 . . . . . Reactor 7 | . . . . . . . 1 . . . . . . . . . . 6 Propulsion 64 | 2 . 3 7 1 3 2 3 1 . 1 4 10 8 . . 3 . 16 Treads 17 | 2 . . 7 . 2 . 1 . . 1 . 1 2 . . . . 1 Leg 18 | . . 1 . . . . . . . . 2 1 1 . . . . 13 Wheel 19 | . . 2 . 1 1 2 2 1 . . 1 5 2 . . . . 2 Hover 8 | . . . . . . . . . . . 1 3 1 . . 3 . . Flight 2 | . . . . . . . . . . . . . 2 . . . . . Utility 78 | 1 2 . 7 . 1 . 9 5 3 6 2 14 11 1 . 2 1 13 Device 35 | 1 . . 1 . 1 . 2 3 1 6 . 8 6 . . . . 6 Storage 5 | . 2 . . . . . 1 . . . . 1 . . . . . 1 Processor 17 | . . . 4 . . . 2 . . . 1 3 4 . . . 1 2 Hackware 7 | . . . . . . . 1 1 1 . . 1 . 1 . 1 . 1 Protection 14 | . . . 2 . . . 3 1 1 . 1 1 1 . . 1 . 3 Artifact . | . . . . . . . . . . . . . . . . . . . Weapon 83 | 1 4 1 11 3 2 2 10 3 2 4 3 9 8 2 . . 2 16 Energy Gun 35 | 1 2 . 5 . . 1 7 1 . . . 2 5 2 . . . 9 Energy Cannon 8 | . . 1 . . 2 1 1 . . . . 3 . . . . . . Ballistic Gun 29 | . 1 . 4 1 . . 2 1 1 3 3 2 2 . . . 2 7 Ballistic Cannon 2 | . . . . . . . . . . . . 2 . . . . . . Launcher 5 | . 1 . 2 1 . . . . 1 . . . . . . . . . Special Weapon 1 | . . . . . . . . 1 . . . . . . . . . . Impact Weapon 1 | . . . . 1 . . . . . . . . . . . . . . Slashing Weapon 2 | . . . . . . . . . . 1 . . 1 . . . . . Piercing Weapon . | . . . . . . . . . . . . . . . . . . . Special Melee Weapon . | . . . . . . . . . . . . . . . . . . . Unidentified Prototypes 19 | . . . 1 2 . . 4 1 2 . . . 2 . . 3 . 4 Corrupted Parts 8 | . . . . . . . . . . 3 . . 5 . . . . . System Corruption 26 | . . . . . . . . . . 12 . . 14 . . . . . Parts Lost 88 | . 1 3 3 1 . . . . 1 . 12 23 3 . 1 . 6 34 Power 12 | . . 1 1 . . . . . . . 2 2 1 . . . . 5 Propulsion 25 | . . 2 . 1 . . . . 1 . 4 7 . . . . . 10 Utility 15 | . . . 1 . . . . . . . 1 6 . . . . 2 5 Weapon 36 | . 1 . 1 . . . . . . . 5 8 2 . 1 . 4 14 Highest Loss Streak 25 | . 1 2 2 1 . . . . 1 . 9 9 3 . 1 . 6 25 To Critical Strikes . | . . . . . . . . . . . . . . . . . . . Average Backups 11 | 5 7 6 14 15 15 12 13 12 12 12 10 7 4 4 5 5 5 11 Power . | 1 1 . 1 1 2 1 . . . . . . . . . . . 1 Propulsion 2 | 3 3 1 4 4 4 2 1 1 1 1 . 1 . . . . . 1 Utility 3 | . 1 2 2 2 2 2 5 5 5 6 5 5 2 2 2 2 1 4 Weapon 4 | 1 2 3 6 6 5 5 6 4 5 5 4 . 2 2 3 3 2 3 Tool/Special . | . . . . . . . . . . . . . . . . . . . Unused Backups 44 | . 4 . 1 3 . 8 12 2 . . 1 4 . . . . . 9 Power 6 | . 2 . . . . 1 1 . . . . . . . . . . 2 Propulsion 7 | . . . . . . 3 2 . . . . 2 . . . . . . Utility 21 | . 2 . . . . 3 6 . . . 1 2 . . . . . 7 Weapon 10 | . . . 1 3 . 1 3 2 . . . . . . . . . . Tool/Special . | . . . . . . . . . . . . . . . . . . . Average Slot Usage (%) 89 | . 99 98 96 99 96 92 87 85 79 88 85 79 64 89 88 83 82 77 Engine 4 | . 14 12 10 11 11 11 . . . . . 2 . . . . . . Reactor 2 | . . . . . . . 5 6 6 6 4 . . . . . . 4 Treads 8 | . 28 4 20 2 14 6 5 4 . 3 . 1 6 10 10 6 . . Leg 1 | . . 11 . . . . . . . . . 4 . . . . . 12 Wheel 5 | . . 11 . 18 3 8 6 7 10 6 9 7 4 5 5 3 . . Device 8 | . 14 14 2 . 10 11 6 9 13 11 8 9 8 21 21 20 19 11 Storage 7 | . 14 14 11 11 11 11 6 6 6 6 5 4 . . . . . 3 Processor 11 | . . . 20 22 11 11 12 6 6 6 7 9 12 12 10 10 10 9 Hackware 4 | . . . . . . . 5 9 12 13 12 3 . 2 5 5 5 6 Protection 6 | . . . 7 11 11 11 8 6 6 6 7 1 2 . . . . . Energy Gun 12 | . 24 17 5 . . 9 23 25 9 . . 2 14 17 20 15 9 4 Energy Cannon 2 | . . 4 . . 21 12 . . . . . 2 . . . . . . Ballistic Gun 7 | . . . 16 21 . . . . 3 22 24 12 6 10 10 10 14 10 Peak Build Rating 119 | 9 11 11 20 23 24 30 70 73 77 85 84 66 104 102 100 100 99 119 Average Rating 51 | 7 9 9 18 22 22 27 62 70 66 80 77 51 77 100 99 95 91 92 On Entrance 47 | 6 9 11 9 20 21 24 29 68 70 73 83 20 2 102 100 95 95 63 Avg Prop Armor Cover (%) 6 | . . 9 9 8 . . 4 4 . 5 5 7 7 12 12 12 . 9 Naked Turns 57 | . . . . . . . . . . . 14 37 6 . . . . . Heaviest Build 88 | 13 32 32 38 41 45 48 64 66 69 65 66 55 62 50 50 44 47 88 Greatest Support 121 | 40 40 40 40 40 46 46 44 44 44 28 40 35 54 20 20 33 48 121 Greatest Overweight (x) 11 | . 1 3 1 2 2 1 2 2 2 2 11 3 3 2 2 3 1 7 Average Overweight (x) 1 | . . . . . . . 1 1 . 2 1 1 . 2 2 1 . . Largest Inventory Capacity 15 | 8 15 15 15 15 15 15 15 15 15 15 15 10 5 5 5 5 5 15 Average Capacity 13 | 8 14 15 15 15 15 15 15 15 15 15 14 9 5 5 5 5 5 12 Most Carried 15 | 6 9 9 15 15 15 15 15 15 15 15 14 10 5 5 5 5 5 15 Average Carried 12 | 5 7 6 14 14 14 12 14 14 14 14 12 8 4 4 5 5 4 11 Final Capacity 15 | 8 15 15 15 15 15 15 15 15 15 15 5 5 5 5 5 5 5 15 Final Carried 15 | 5 9 6 15 15 15 10 15 15 15 14 5 5 4 5 5 5 5 9 Scrap Suit Usage (%) 1 | . . . . . . . . . . . . . 52 36 . . . . Parts Cannibalized 4 | . . . . . . . . . . . . . 3 1 . . . . Class Distribution -------------------- 35% | Mutant 15% | Scavenger-Gunner 10% | Scavenger-Tank 5% | Commander-Gunner 5% | Scavenger-Executioner 5% | Scavenger-Skirmisher 4% | Scavenger-Mutant 4% | Commander-Skirmisher 4% | Scavenger-Scrapper 3% | Commander-Mutant Dominant Class ---------------- Mutant | -10/Materials Mutant | -10/Mines Mutant | -9/Materials Commander-Mutant | -9/Storage Mutant | -9/Recycling Mutant | -9/Scraptown Scavenger-Gunner | -6/Factory Hacker-Gunner | -6/Extension Commander-Gunner | -6/Cetus Commander-Skirmisher | -6/Archives Commander-Skirmisher | -6/Hub_04(d) Scavenger-Gunner | -5/Factory Scavenger-Scrapper | -4/Factory Scavenger-Scrapper | -4/Upper Caves Scavenger-Scrapper | -4/Upper Caves Scavenger-Executioner | -4/Zhirov Scavenger-Executioner | -3/Proximity Caves Scavenger-Executioner | -3/Research Resources | -11 -10 -10 -9 -9 -9 -9 -6 -6 -6 -6 -6 -5 -4 -4 -4 -4 -3 -3 ----------- Run | Yrd Mat Min Mat Sto Rec Scr Fac Ext Cet Arc Hub Fac Fac Upp Upp Zhi Pro Res Matter Collected 7355 | 203 281 79 786 458 75 50 552 118 195 183 698 1468 441 106 114 . 333 1215 Remotely . | . . . . . . . . . . . . . . . . . . . Salvage Created 13967 | 90 571 27 1578 994 484 . 2935 1861 504 386 1083 1564 76 . 56 . 214 1544 Parts 584 | 6 41 3 111 67 20 . 88 41 20 28 42 57 6 . 3 . 2 49 Haulers Intercepted 15 | . 1 . 3 4 . . 3 2 . . . 2 . . . . . . Recyclers Shooed 11 | . . . 2 . 1 . . 1 . . . 7 . . . . . . Parts Field Recycled . | . . . . . . . . . . . . . . . . . . . Retrieved Matter . | . . . . . . . . . . . . . . . . . . . Parts Self-Destructed 1 | . . . . . . . . . . . . . . . 1 . . . Prevented 2 | . . . . . . . . . . . . . . . 2 . . . Parts Restored . | . . . . . . . . . . . . . . . . . . . Kills | -11 -10 -10 -9 -9 -9 -9 -6 -6 -6 -6 -6 -5 -4 -4 -4 -4 -3 -3 ------- Run | Yrd Mat Min Mat Sto Rec Scr Fac Ext Cet Arc Hub Fac Fac Upp Upp Zhi Pro Res Combat Hostiles Destroyed 210 | . 13 7 37 16 3 . 42 21 6 1 18 17 1 . 1 . 1 26 Melee 4 | . . . . . . . . . . . . . . . . . . 4 Guns 143 | . 10 2 22 13 . . 34 15 1 1 17 6 1 . 1 . 1 19 Cannons 16 | . . . . . 3 . . . . . . 11 . . . . . 2 AOE 27 | . 3 5 15 3 . . . . . . 1 . . . . . . . Classes Destroyed 22 | 2 7 2 2 . . . 3 2 . . 1 . . . . . 1 2 Worker 10 | . 2 . 1 . . . 2 1 . . 2 2 . . . . . . Builder 14 | . 3 . 2 . 2 . 2 . . . 1 3 . . . . . 1 Tunneler 2 | 1 . . . . . . . . . . . 1 . . . . . . Hauler 15 | . 1 . 3 4 . . 3 2 . . . 2 . . . . . . Recycler 17 | 1 1 . 3 1 3 . 3 2 . . . 3 . . . . . . Mechanic 3 | . 1 . . . . . . . . . . 1 . . . . . 1 Operator 16 | . . . 1 1 . . 2 2 . 9 . 1 . . . . . . Drone 1 | . . . . . . . . . . . . . . . . . 1 . Watcher 17 | . 3 . 5 1 . . 3 . 2 . 1 2 . . . . . . Swarmer 47 | . 6 2 16 2 . . 3 . . . 4 4 . . . . . 10 Saboteur 1 | . . . . . . . . . . . . . . . . . . 1 Grunt 79 | . 7 . 12 5 1 . 20 11 . . 10 5 1 . . . . 7 Brawler 1 | . . . . . . . . 1 . . . . . . . . . . Duelist 2 | . . . . . . . 2 . . . . . . . . . . . Sentry 37 | . . . 9 9 3 . 7 5 . 1 1 1 . . . . . 1 Demolisher 4 | . . 2 . . . . . . . . . . . . . . . 2 Specialist 1 | . . . . . . . . . . . 1 . . . . . . . Hunter 8 | . . . . . . . 2 2 . . . 1 . . . . . 3 Programmer 17 | . . . . . . . 8 . . . 2 6 . . 1 . . . Behemoth 3 | . . . . . . . . 2 . . . . . . . . . 1 Cetus Guard 6 | . . . . . . . . . 6 . . . . . . . . . Striker 1 | . . . . . . . . . . . . . . . . . . 1 Assembled 3 | . . 3 . . . . . . . . . . . . . . . . Butcher 1 | . . . . . . . . . . . 1 . . . . . . . Best Kill Streak 16 | 2 8 3 16 6 3 . 8 6 5 4 13 5 1 . 1 . 1 5 Combat Bots Only 11 | . 4 3 11 5 1 . 7 5 4 1 10 5 1 . 1 . 1 5 Max Kills in Single Turn 4 | 2 2 3 4 4 2 . 2 1 2 1 2 2 1 . 1 . 1 2 Gunslinging 1 | . . . . . . . 1 . . . 1 . . . . . . 1 Exploded 3 | . 2 3 3 3 . . . . . . 1 . . . . . . . Melee 1 | . . . . . . . . . . . . . . . . . . 1 Uniques/NPCs Destroyed . | . . . . . . . . . . . . . . . . . . . Combat | -11 -10 -10 -9 -9 -9 -9 -6 -6 -6 -6 -6 -5 -4 -4 -4 -4 -3 -3 -------- Run | Yrd Mat Min Mat Sto Rec Scr Fac Ext Cet Arc Hub Fac Fac Upp Upp Zhi Pro Res Hostile Shots Fired 1641 | . 58 25 105 46 4 . 220 131 26 2 262 247 129 . 18 . 31 337 Missed 580 | . 16 7 31 18 1 . 82 47 10 . 96 84 58 . 10 . 12 108 Hits 1061 | . 42 18 74 28 3 . 138 84 16 2 166 163 71 . 8 . 19 229 Melee 13 | . . . . . . . . 1 . . . . . . . . . 12 Projectile 1048 | . 42 18 74 28 3 . 138 83 16 2 166 163 71 . 8 . 19 217 AOE 15 | . . 6 . . . . . . . . . 1 . . . . . 8 Critical Strikes 43 | . . 1 4 2 . . 3 1 3 . 4 10 4 . 1 . 2 8 Part Disruptions 2 | . . . . . . . 1 . . . 1 . . . . . . . Damage Taken 18684 | . 448 489 907 442 45 . 1582 758 322 73 2671 3123 1364 . 163 . 660 5637 Core 3245 | . 45 130 134 53 . . 127 49 53 . 513 715 51 . 11 . 47 1317 Absorbed by Shields 576 | . . . . . . . 52 373 103 . . 48 . . . . . . Reduced by Siege Mode 91 | . . . . . . . . . . . . . . . . . . 91 Regen/Repaired (Parts) 725 | . . . . . . . 595 . . . . . 128 2 . . . . Core Remaining (%) 52 | 100 . 30 . . . 53 . . . . 12 28 . . . . 90 . Volleys Fired 639 | 3 56 12 101 55 15 . 96 54 10 6 43 86 9 . 9 . 8 76 Largest 6 | 2 2 2 2 2 2 . 4 4 1 3 4 5 5 . 6 . 6 5 Hottest 357 | 70 100 115 90 46 136 . 310 305 75 125 140 220 339 . 357 . 270 285 Shots Fired 1854 | 6 100 16 178 106 30 . 340 207 11 18 141 288 34 . 53 . 44 282 Gun 1655 | 6 92 8 167 102 . . 322 207 3 18 133 186 34 . 53 . 44 280 Cannon 152 | . . . . . 30 . 18 . . . . 102 . . . . . 2 Launcher 47 | . 8 8 11 4 . . . . 8 . 8 . . . . . . . Special . | . . . . . . . . . . . . . . . . . . . Kinetic 852 | 3 4 . 95 102 . . 6 . . 12 133 231 18 . 17 . 29 202 Thermal 844 | 3 88 8 21 . 30 . 319 207 3 6 . 22 16 . 28 . 15 78 Explosive 31 | . 8 8 11 4 . . . . . . . . . . . . . . Electromagnetic 127 | . . . 51 . . . 15 . 8 . 8 35 . . 8 . . 2 Robot Hit Streak 29 | 5 8 7 28 29 21 . 28 28 3 5 14 12 7 . 3 . 1 18 Robot Miss Streak 6 | 1 3 2 3 2 1 . 6 6 1 2 3 5 2 . . . 1 6 Penetration Max 1 | . . . . . . . . . . 1 1 1 1 . . . . 1 Secondary Targets 23 | . . 1 3 . . . 3 5 . . 4 . 1 . . . . 6 Max Gunslinging Chain 1 | . . 1 1 . . . 1 1 . . 1 . 1 . . . . 1 Shots Hit Robots 1167 | 5 59 7 128 80 17 . 237 161 3 26 74 173 20 . 2 . 6 169 Core Hits 610 | 3 39 13 66 37 10 . 162 59 13 11 47 71 9 . 1 . 3 66 Critical Kills 8 | . . . . . . . 1 . . 1 4 . . . . . . 2 Critical Parts Destroyed 22 | . . . . . . . . . . . 10 3 2 . . . . 7 Critical Strikes 75 | 1 6 1 3 . . . 6 10 . 4 14 9 5 . . . 1 15 Burn 35 | 1 6 1 2 . . . 5 10 . 2 . . 3 . . . . 5 Meltdown 1 | . . . . . . . 1 . . . . . . . . . . . Destroy 29 | . . . . . . . . . . 1 14 3 2 . . . . 9 Blast 5 | . . . . . . . . . . . . 5 . . . . . . Corrupt 3 | . . . 1 . . . . . . . . 1 . . . . . 1 Sever 2 | . . . . . . . . . . 1 . . . . . . 1 . Melee Attacks 59 | . . . . 2 . . 13 . . 17 . . 2 . . . 8 17 Impact 15 | . . . . 2 . . 13 . . . . . . . . . . . Slashing 44 | . . . . . . . . . . 17 . . 2 . . . 8 17 Piercing . | . . . . . . . . . . . . . . . . . . . Sneak Attacks 14 | . . . . . . . . . . 13 . . . . . . . 1 Combat Hostiles . | . . . . . . . . . . . . . . . . . . . Follow-up Attacks . | . . . . . . . . . . . . . . . . . . . Damage Inflicted 33374 | 51 1243 531 3213 1496 412 . 6346 3995 1057 1649 2982 5294 598 . 65 . 340 4102 Guns 24519 | 51 802 95 1948 1317 . . 5902 3995 40 324 2529 3121 598 . 65 . 33 3699 Cannons 2914 | . . . . . 408 . 261 . . . . 2173 . . . . . 72 Explosions 3912 | . 435 436 1243 179 . . 149 . 1017 . 453 . . . . . . . Melee 1982 | . . . . . . . 34 . . 1325 . . . . . . 307 316 Ramming 47 | . 6 . 22 . 4 . . . . . . . . . . . . 15 Kinetic 12513 | 27 28 . 1181 1317 . . 77 . . 263 2529 4187 300 . 65 . 33 2506 Thermal 13983 | 24 774 95 395 . 408 . 6038 3995 247 61 . 455 298 . . . . 1193 Explosive 2156 | . 435 436 1106 179 . . . . . . . . . . . . . . Electromagnetic 2693 | . . . 509 . . . 197 . 810 . 453 652 . . . . . 72 Impact 34 | . . . . . . . 34 . . . . . . . . . . . Slashing 1948 | . . . . . . . . . . 1325 . . . . . . 307 316 Piercing . | . . . . . . . . . . . . . . . . . . . Highest Corruption 18 | . . . . . . . 3 2 2 10 9 11 14 14 14 14 18 . Average Corruption 5 | . . . . . . . 1 1 2 4 2 7 13 14 14 14 14 . Corruption Purged 24 | . . . . . . . 3 . . 14 . 7 . . . . . . Corruption Blocked . | . . . . . . . . . . . . . . . . . . . Effects 116 | . . . . . . . 11 10 3 2 2 22 16 9 17 8 16 . Message Errors 25 | . . . . . . . 3 4 . 1 . 2 1 4 2 2 6 . Matter Fused 30 | . . . . . . . 1 5 1 1 1 6 4 . 5 3 3 . Heat Flow Errors 13 | . . . . . . . 1 . . . 1 3 2 3 1 . 2 . Energy Discharges 12 | . . . . . . . 2 . . . . 2 5 2 1 . . . Parts Rejected 1 | . . . . . . . . . . . . . . . 1 . . . Parts Fused 2 | . . . . . . . . . . . . . . . . . 2 . Data Loss (minor) 16 | . . . . . . . 2 . 1 . . 6 1 . 3 3 . . Data Loss (major) 3 | . . . . . . . 1 1 . . . . 1 . . . . . Misfires 5 | . . . . . . . . . 1 . . 1 1 . 1 . 1 . Alerts 1 | . . . . . . . . . . . . . . . 1 . . . Misdirections 4 | . . . . . . . . . . . . 1 1 . 1 . 1 . Weapon Failures 4 | . . . . . . . 1 . . . . 1 . . 1 . 1 . Overload Shots 2 | . . . . . . . . . . . . . . . . . . 2 Overflow Damage 538 | . 1 . 16 . . . 46 . . 295 . 34 . . . . 75 71 Projectiles 34 | . . . . . . . . . . . . 34 . . . . . . Explosions 63 | . 1 . 16 . . . 46 . . . . . . . . . . . Melee 441 | . . . . . . . . . . 295 . . . . . . 75 71 Knockbacks 14 | . . . . . . . . . . . . 14 . . . . . . Impact . | . . . . . . . . . . . . . . . . . . . Kinetic 14 | . . . . . . . . . . . . 14 . . . . . . Secondary . | . . . . . . . . . . . . . . . . . . . Self-Inflicted Damage 298 | . 16 107 57 57 . . 34 . . . 27 . . . . . . . Shots 11 | . 1 3 2 2 . . 1 . . . 2 . . . . . . . Rammed 6 | . . . 4 1 1 . . . . . . . . . . . . . Targets Rammed 12 | . 1 . 5 1 1 . . . . . . . . . . . . 4 Kicked 4 | . . . . . . . . . . . . . . . . . . 4 Crushed 2 | . 1 . 1 . . . . . . . . . . . . . . . Highest Temperature 483 | 50 285 162 98 20 18 . 483 468 8 . 270 290 397 248 471 . 320 184 Average Temperature 103 | 26 102 62 25 5 5 . 148 138 5 . 67 69 138 110 144 . 133 33 Received Heat Transfer 3683 | . 177 20 300 156 9 . 385 165 . . 900 912 198 . 45 . 55 361 Effects 26 | . . . . . . . 12 8 . . 4 . . . . . 2 . Energy Bleed 7 | . . . . . . . 3 2 . . 1 . . . . . 1 . Interference 14 | . . . . . . . 7 3 . . 3 . . . . . 1 . Matter Decay 1 | . . . . . . . 1 . . . . . . . . . . . Short Circuit 2 | . . . . . . . . 2 . . . . . . . . . . Damage (minor) 2 | . . . . . . . 1 1 . . . . . . . . . . Siege Activations 2 | . . . . . . . . . . . . . . . . . . 2 Total Turns 51 | . . . . . . . . . . . . . . . . . . 51 Longest Duration 30 | . . . . . . . . . . . . . . . . . . 30 Martial Activations . | . . . . . . . . . . . . . . . . . . . Shielding Activations . | . . . . . . . . . . . . . . . . . . . Robots Disrupted . | . . . . . . . . . . . . . . . . . . . Combat Hostiles . | . . . . . . . . . . . . . . . . . . . Robots Corrupted 5 | . . . . . . . . . 5 . . . . . . . . . Combat Hostiles 5 | . . . . . . . . . 5 . . . . . . . . . Parts Fried 11 | . . . 1 . . . . 1 5 . 1 2 . . . . . 1 Impact Corruptions . | . . . . . . . . . . . . . . . . . . . Robots Melted 16 | . . . . . . . 8 7 . . . . . . . . . 1 Combat Hostiles 15 | . . . . . . . 8 6 . . . . . . . . . 1 Parts Melted 111 | 1 8 . . . . . 41 46 . . . . . . 1 . . 14 Heat Transferred 32607 | 148 2627 333 927 . 703 . 13250 9507 274 259 . 592 900 . . . . 3087 Parts Sabotaged . | . . . . . . . . . . . . . . . . . . . Parts Stolen . | . . . . . . . . . . . . . . . . . . . Parts Stripped . | . . . . . . . . . . . . . . . . . . . Power Chain Reactions 5 | . . . 3 . . . . . 1 . . 1 . . . . . . Alert | -11 -10 -10 -9 -9 -9 -9 -6 -6 -6 -6 -6 -5 -4 -4 -4 -4 -3 -3 ------- Run | Yrd Mat Min Mat Sto Rec Scr Fac Ext Cet Arc Hub Fac Fac Upp Upp Zhi Pro Res Maximum Alert Level 4 | . 1 . 3 2 1 . 2 3 2 1 4 3 4 . . . . 1 Low Security (%) 44 | 100 83 100 26 25 25 . 46 48 . 48 37 . . . . . . 90 Level 1 29 | . 16 . 41 23 74 . 37 36 . 51 . . 31 . . . . 9 Level 2 17 | . . . 16 51 . . 16 3 100 . 8 80 8 . . . . . Level 3 6 | . . . 15 . . . . 11 . . 23 19 36 . . . . . Level 4 1 | . . . . . . . . . . . 29 . 23 . . . . . Level 5 . | . . . . . . . . . . . . . . . . . . . High Security . | . . . . . . . . . . . . . . . . . . . Max Security . | . . . . . . . . . . . . . . . . . . . Peak Influence 1421 | 10 250 65 742 648 284 . 558 817 595 378 1421 805 1136 . . . . 240 Initial 683 | . . 60 11 120 236 . . 273 444 211 5 683 363 . . . . 23 Average 294 | 5 129 27 347 388 219 . 226 250 522 200 649 645 758 . . . . 88 Influence Increases 11567 | 10 525 150 1223 905 318 . 1712 1357 381 297 1914 759 1161 . 30 . 55 770 Destroy 0b10 Robot/C 5320 | . 260 80 740 400 60 . 940 640 160 80 700 340 380 . 20 . . 520 Destroy 0b10 Robot/NC 545 | 10 55 . 75 35 25 . 80 60 10 45 45 75 10 . . . 10 10 Destroy Leader 1202 | . 58 20 206 160 . . 294 96 . . 162 56 60 . 10 . . 80 Allied During Kill 1688 | . . . . 153 1 . 67 461 170 125 522 . 189 . . . . . Successful Hack 246 | . 23 . 31 44 21 . 55 24 . . 32 4 12 . . . . . Select Force Hacks 410 | . 30 . 60 30 210 . 30 . . . 50 . . . . . . . Disable Machine 735 | . 15 15 30 45 . . 120 30 15 45 195 30 195 . . . . . Destroy Structure 596 | . 39 35 81 38 1 . 36 16 11 2 73 74 150 . . . . 40 Lose Combat Pursuer 825 | . 45 . . . . . 90 30 15 . 135 180 165 . . . 45 120 Influence Decreases 11544 | 10 369 277 967 583 763 162 1154 1122 645 810 535 1412 799 480 290 364 20 782 Entered New Map 3772 | . . 96 18 165 371 162 . 285 349 318 11 712 379 410 120 364 . 12 Time Decay 5372 | 10 359 151 619 368 392 . 674 477 206 452 304 470 230 70 160 . 20 410 Lost Part 820 | . 10 30 30 10 . . . . 10 . 120 230 30 . 10 . . 340 Lost Ally 530 | . . . . 40 . . 30 60 80 40 100 . 160 . . . . 20 Purge Threat 1050 | . . . 300 . . . 450 300 . . . . . . . . . . Squads Dispatched 72 | . 2 . 6 6 . . 21 5 . . 12 7 8 . . . . 5 Investigation 29 | . 1 . 5 2 . . 8 3 . . 5 . 3 . . . . 2 Extermination 13 | . . . . . . . 7 . . . 3 2 1 . . . . . Reinforcement 20 | . 1 . 1 1 . . 3 2 . . 3 2 4 . . . . 3 Assault 3 | . . . . 2 . . . . . . 1 . . . . . . . Garrison 7 | . . . . 1 . . 3 . . . . 3 . . . . . . Intercept . | . . . . . . . . . . . . . . . . . . . Searches Triggered . | . . . . . . . . . . . . . . . . . . . Construction Impeded 4 | . . . . . . . . . . . 1 1 1 . . . . 1 Haulers Reinforced 2 | . . . . . . . 1 . . . . . 1 . . . . . Active Scanning Responses . | . . . . . . . . . . . . . . . . . . . Cargo Convoy Interrupts . | . . . . . . . . . . . . . . . . . . . Stealth | -11 -10 -10 -9 -9 -9 -9 -6 -6 -6 -6 -6 -5 -4 -4 -4 -4 -3 -3 --------- Run | Yrd Mat Min Mat Sto Rec Scr Fac Ext Cet Arc Hub Fac Fac Upp Upp Zhi Pro Res Distress Signals 34 | . . . 3 2 . . 6 2 2 . 4 2 1 . . . . 12 Communications Jammed . | . . . . . . . . . . . . . . . . . . . Distress Signals . | . . . . . . . . . . . . . . . . . . . Times Spotted 415 | . 21 22 47 23 2 . 72 39 7 10 42 45 21 . 6 . 8 50 Peak Tracking Total 18 | . 5 18 10 6 1 . 6 5 5 1 8 8 8 . 5 . 5 7 Tactical Retreats 31 | . 2 . . . . . 3 2 1 . 4 10 3 . . . 2 4 Traps | -11 -10 -10 -9 -9 -9 -9 -6 -6 -6 -6 -6 -5 -4 -4 -4 -4 -3 -3 ------- Run | Yrd Mat Min Mat Sto Rec Scr Fac Ext Cet Arc Hub Fac Fac Upp Upp Zhi Pro Res Traps Triggered 14 | . 1 . . . . . 2 4 . . 6 1 . . . . . . Indirectly 3 | . . . . . . . . . . . 3 . . . . . . . Trap Hack Attempts . | . . . . . . . . . . . . . . . . . . . Triggered . | . . . . . . . . . . . . . . . . . . . Disarmed . | . . . . . . . . . . . . . . . . . . . Reprogrammed 6 | . 6 . . . . . . . . . . . . . . . . . Reused . | . . . . . . . . . . . . . . . . . . . Traps Extracted . | . . . . . . . . . . . . . . . . . . . Installed . | . . . . . . . . . . . . . . . . . . . Triggered . | . . . . . . . . . . . . . . . . . . . Machines | -11 -10 -10 -9 -9 -9 -9 -6 -6 -6 -6 -6 -5 -4 -4 -4 -4 -3 -3 ---------- Run | Yrd Mat Min Mat Sto Rec Scr Fac Ext Cet Arc Hub Fac Fac Upp Upp Zhi Pro Res Machines Disabled 50 | . 1 1 2 3 . . 8 2 1 3 13 2 13 . . . 1 . Max in Single Turn 2 | . 1 1 1 1 . . 2 1 1 2 2 1 1 . . . 1 . Garrison Access 5 | . . . . 1 . . 2 . . . . 1 . . . . . 1 Network Hub 1 | . . . . . . . . . . . 1 . . . . . . . Machines Repaired . | . . . . . . . . . . . . . . . . . . . Machines Dismantled 2 | . . . . . . . . 1 1 . . . . . . . . . Machines Sabotaged 1 | . . . . . . . . . . . 1 . . . . . . . Overloaded Fab Kills . | . . . . . . . . . . . . . . . . . . . Hacking | -11 -10 -10 -9 -9 -9 -9 -6 -6 -6 -6 -6 -5 -4 -4 -4 -4 -3 -3 --------- Run | Yrd Mat Min Mat Sto Rec Scr Fac Ext Cet Arc Hub Fac Fac Upp Upp Zhi Pro Res Machines Accessed 101 | . 8 . 13 10 13 4 21 13 1 . 5 3 5 . . 3 1 1 Terminals 60 | . 7 . 9 8 6 . 10 11 1 . 5 2 1 . . . . . Fabricators 1 | . . . . . . . 1 . . . . . . . . . . . Repair Stations 4 | . . . . . . . 2 . . . . . 1 . . . . 1 Recycling Units 19 | . 1 . 2 1 7 . 4 2 . . . . 2 . . . . . Scanalyzers 5 | . . . 2 . . . 2 . . . . . 1 . . . . . Garrison Access 4 | . . . . 1 . . 2 . . . . 1 . . . . . . Total Hacks 293 | . 25 . 38 34 27 13 66 36 4 . 12 5 10 . . 19 1 3 Successful 185 | . 17 . 19 21 21 13 47 13 . . 7 3 4 . . 19 1 . Failed 103 | . 7 . 18 12 6 . 18 23 4 . 5 2 5 . . . . 3 Catastrophic 16 | . . . 2 2 1 . 1 3 2 . 2 1 1 . . . . 1 Database Lockouts 5 | . 1 . 1 1 . . 1 . . . . . 1 . . . . . Manual 155 | . 22 . 33 19 19 . 28 14 1 . 11 2 6 . . . . . Terminals 196 | . 24 . 32 32 18 . 38 31 4 . 12 4 1 . . . . . Fabricators 2 | . . . . . . . 2 . . . . . . . . . . . Repair Stations 17 | . . . . . . . 13 . . . . . 1 . . . . 3 Recycling Units 26 | . 1 . 2 1 9 . 4 5 . . . . 4 . . . . . Scanalyzers 12 | . . . 4 . . . 4 . . . . . 4 . . . . . Garrison Access 7 | . . . . 1 . . 5 . . . . 1 . . . . . . Terminal Hacks 89 | . 7 . 5 13 6 13 15 8 . . 1 1 . . . 19 1 . Record 23 | . . . . . . 7 . . . . . . . . . 15 1 . Part Schematic 4 | . . . . 2 1 . 1 . . . . . . . . . . . Robot Analysis 18 | . 3 . 1 3 1 5 1 . . . . . . . . 4 . . Prototype ID Bank 8 | . 1 . 2 2 2 . 1 . . . . . . . . . . . Open Door 8 | . . . . 2 . . 1 5 . . . . . . . . . . Branch Access Points 1 | . . . . . . . 1 . . . . . . . . . . . Emergency Access Points 1 | . 1 . . . . . . . . . . . . . . . . . Machine Index 1 | . . . . . . . 1 . . . . . . . . . . . Terminal Index 1 | . . . . 1 . . . . . . . . . . . . . . Recycling Unit Index 2 | . 1 . . 1 . . . . . . . . . . . . . . Scanalyzer Index 1 | . . . . 1 . . . . . . . . . . . . . . Alert Level 4 | . . . . . 1 . 1 1 . . . 1 . . . . . . Unreport Threat 7 | . . . 2 . . . 3 2 . . . . . . . . . . Locate Traps 2 | . . . . . . . 2 . . . . . . . . . . . Reprogram Traps 1 | . 1 . . . . . . . . . . . . . . . . . Extermination Status 1 | . . . . . 1 . . . . . . . . . . . . . Recall Investigation 1 | . . . . . . . 1 . . . . . . . . . . . Zone Layout 4 | . . . . 1 . . 2 . . . 1 . . . . . . . Proto ID Catalog 1 | . . . . . . 1 . . . . . . . . . . . . Fabricator Hacks 1 | . . . . . . . 1 . . . . . . . . . . . Network Status 1 | . . . . . . . 1 . . . . . . . . . . . Repair Station Hacks 12 | . . . . . . . 12 . . . . . . . . . . . Scan Component 6 | . . . . . . . 6 . . . . . . . . . . . Repair 6 | . . . . . . . 6 . . . . . . . . . . . Recycling Unit Hacks 1 | . . . . . 1 . . . . . . . . . . . . . Retrieve Components 1 | . . . . . 1 . . . . . . . . . . . . . Scanalyzer 3 | . . . 1 . . . 1 . . . . . 1 . . . . . Retrieve Study 3 | . . . 1 . . . 1 . . . . . 1 . . . . . Garrison Access Hacks 4 | . . . . 1 . . 2 . . . . 1 . . . . . . Seal Access 4 | . . . . 1 . . 2 . . . . 1 . . . . . . Unauthorized Hacks 75 | . 10 . 13 7 14 . 16 5 . . 6 1 3 . . . . . Terminals 54 | . 9 . 11 6 7 . 11 3 . . 6 1 . . . . . . Track 2 | . . . 1 . . . . . . . 1 . . . . . . . Assimilate 3 | . 1 . 2 . . . . . . . . . . . . . . . Botnet 17 | . 2 . 2 2 2 . 4 2 . . 2 1 . . . . . . Operators 4 | . 1 . 1 1 . . 1 . . . . . . . . . . . Skim 25 | . 5 . 5 3 5 . 6 1 . . . . . . . . . . Sabotage 3 | . . . . . . . . . . . 3 . . . . . . . Fabricators 1 | . . . . . . . 1 . . . . . . . . . . . Report 1 | . . . . . . . 1 . . . . . . . . . . . Repair Stations 1 | . . . . . . . . . . . . . 1 . . . . . Patch 1 | . . . . . . . . . . . . . 1 . . . . . Recycling Units 19 | . 1 . 2 1 7 . 4 2 . . . . 2 . . . . . Tunnel 12 | . 1 . 2 1 7 . 1 . . . . . . . . . . . Fedlink 5 | . . . . . . . 3 2 . . . . . . . . . . Scrapoids 2 | . . . . . . . . . . . . . 2 . . . . . Scanalyzers . | . . . . . . . . . . . . . . . . . . . Garrison Access . | . . . . . . . . . . . . . . . . . . . Data Cores Recovered 2 | . . . . . . . 2 . . . . . . . . . . . Used 1 | . . . . . . . 1 . . . . . . . . . . . Hacking Detections 62 | . 7 . 10 7 5 . 15 9 1 . 3 2 2 . . . . 1 Full Trace Events 12 | . . . 3 2 1 . 3 1 . . 1 . . . . . . 1 Feedback Events . | . . . . . . . . . . . . . . . . . . . Feedback Blocked . | . . . . . . . . . . . . . . . . . . . Robot Schematics Acquired . | . . . . . . . . . . . . . . . . . . . Robots Built . | . . . . . . . . . . . . . . . . . . . Authchips . | . . . . . . . . . . . . . . . . . . . Time . | . . . . . . . . . . . . . . . . . . . Total Robot Build Rating . | . . . . . . . . . . . . . . . . . . . Part Schematics Acquired 4 | . . . . 2 1 . 1 . . . . . . . . . . . Parts Built . | . . . . . . . . . . . . . . . . . . . Authchips . | . . . . . . . . . . . . . . . . . . . Time . | . . . . . . . . . . . . . . . . . . . Total Part Build Rating . | . . . . . . . . . . . . . . . . . . . Part Studies Acquired 3 | . . . 1 . . . 1 . . . . . 1 . . . . . Parts Repaired 6 | . . . . . . . 6 . . . . . . . . . . . Time 294 | . . . . . . . 294 . . . . . . . . . . . Parts Recycled . | . . . . . . . . . . . . . . . . . . . Recycled Matter . | . . . . . . . . . . . . . . . . . . . Retrieved Matter . | . . . . . . . . . . . . . . . . . . . Retrieved Components 4 | . . . . . 4 . . . . . . . . . . . . . Parts Scanalyzed . | . . . . . . . . . . . . . . . . . . . Part Schematics Acquired . | . . . . . . . . . . . . . . . . . . . Parts Damaged . | . . . . . . . . . . . . . . . . . . . Bothacking | -11 -10 -10 -9 -9 -9 -9 -6 -6 -6 -6 -6 -5 -4 -4 -4 -4 -3 -3 ------------ Run | Yrd Mat Min Mat Sto Rec Scr Fac Ext Cet Arc Hub Fac Fac Upp Upp Zhi Pro Res Used RIF Installer . | . . . . . . . . . . . . . . . . . . . Robots Hacked . | . . . . . . . . . . . . . . . . . . . Non-combat . | . . . . . . . . . . . . . . . . . . . Combat . | . . . . . . . . . . . . . . . . . . . Robot Hacks Applied . | . . . . . . . . . . . . . . . . . . . Relay Couplers Released . | . . . . . . . . . . . . . . . . . . . Fabnet Peak Effective % . | . . . . . . . . . . . . . . . . . . . Robots Rewired 10 | . . . . . . . . 10 . . . . . . . . . . Allies Hacked 1 | . . . . . . . 1 . . . . . . . . . . . Hacks Repelled . | . . . . . . . . . . . . . . . . . . . Allies | -11 -10 -10 -9 -9 -9 -9 -6 -6 -6 -6 -6 -5 -4 -4 -4 -4 -3 -3 -------- Run | Yrd Mat Min Mat Sto Rec Scr Fac Ext Cet Arc Hub Fac Fac Upp Upp Zhi Pro Res Total Allies 45 | . . . 2 10 . 1 . 17 5 . . . 10 . . . . . Largest Group 16 | . . . 2 12 3 3 3 13 16 14 11 . 6 . . . . . Highest-Rated Group 942 | . . . 20 108 28 62 62 513 942 795 568 . 282 . . . . . Highest-Rated Ally 159 | . . . 10 16 10 42 42 159 159 159 96 . 47 . . . . . Initial UFD Resources 49 | . . . . . . . 23 39 43 43 43 46 49 43 43 43 46 46 Total Orders 25 | . . . 12 4 . 1 3 . . . 4 . . . . . . 1 STAY 15 | . . . 6 2 . 1 2 . . . 4 . . . . . . . FOLLOW 9 | . . . 6 2 . . 1 . . . . . . . . . . . EXPLORE 1 | . . . . . . . . . . . . . . . . . . 1 Ally Attacks 395 | . . . . 21 2 . 39 76 19 17 76 . 145 . . . . . Total Damage 11089 | . . . . 171 10 . 812 2517 343 492 2926 . 3818 . . . . . Kills 76 | . . . . 4 . . 6 17 2 3 23 . 21 . . . . . Allies Corrupted 1 | . . . . . . . . . . . 1 . . . . . . . Allies Melted 1 | . . . . . . . 1 . . . . . . . . . . . Intel | -11 -10 -10 -9 -9 -9 -9 -6 -6 -6 -6 -6 -5 -4 -4 -4 -4 -3 -3 ------- Run | Yrd Mat Min Mat Sto Rec Scr Fac Ext Cet Arc Hub Fac Fac Upp Upp Zhi Pro Res Active Infowar (turns) 12021 | 9 1356 477 1105 . . . 4191 63 . 647 534 1078 78 159 328 159 334 1503 Optics 4254 | . . . . . . . 4191 63 . . . . . . . . . . Sensors 3513 | . . . . . . . . . . 645 534 . 78 159 328 159 334 1276 Terrain 3276 | 9 1356 477 446 . . . . . . 620 314 54 . . . . . . Machine Analysis 3668 | . . . 1092 . . . . . . . . 1033 . . . . 40 1503 Robot Analysis Total 18 | . 3 . 1 3 1 5 1 . . . . . . . . 4 . . Derelict Logs Recovered 3 | . . 1 . . . . . . . . . . . . 2 . . . Drone Launches 2 | . . . . . . . . . . . . . . . . . . 2 Drone Recoveries . | . . . . . . . . . . . . . . . . . . . Exploration | -11 -10 -10 -9 -9 -9 -9 -6 -6 -6 -6 -6 -5 -4 -4 -4 -4 -3 -3 ------------- Run | Yrd Mat Min Mat Sto Rec Scr Fac Ext Cet Arc Hub Fac Fac Upp Upp Zhi Pro Res Turns Passed 20997 | 22 1356 477 2819 841 925 1968 4623 1364 435 1129 788 1181 484 159 328 159 334 1605 Spaces Moved 11597 | 6 605 351 932 560 587 1448 2310 704 283 265 502 700 487 157 287 154 383 876 Core 106 | . . . . . . . . . . . 33 55 10 . . . . 8 Treads 2741 | 3 605 22 849 37 368 284 510 . . . . 17 45 . . . . 1 Legs 615 | 3 . . . . . . . . . . 2 60 . . . . . 550 Wheels 7146 | . . 329 83 523 219 1164 1800 704 283 265 466 567 203 157 287 96 . . Hover 785 | . . . . . . . . . . . 1 1 25 . . 58 383 317 Flight 204 | . . . . . . . . . . . . . 204 . . . . . Fastest Speed 30 | 120 160 115 105 105 105 105 110 110 95 130 50 50 34 90 90 90 30 30 Average Speed 127 | 140 160 117 161 109 144 130 151 125 106 130 114 107 77 90 90 92 69 108 Slowest Speed 600 | 160 240 160 240 160 240 240 240 130 130 130 600 250 250 90 90 230 92 400 Overloaded Moves 158 | . . . . . . . . . . . . . . . . . 135 23 Propulsion Burnouts . | . . . . . . . . . . . . . . . . . . . Robots Hopped . | . . . . . . . . . . . . . . . . . . . Potential Cave-ins 24 | . . 1 . . . . . . . . 1 . 16 . 2 . 4 . Cave-ins Triggered 1 | . . . . . . . . . . . . . . . . . 1 . Exploration Rate (%) 60 | 2 93 85 78 89 98 88 59 87 74 83 53 21 13 39 52 62 55 23 Regions Visited 18 Branch Regions 12 Pre-discovered Areas 26 | . 3 . 4 2 9 . 5 . . . . . . . . 3 . . Known Exits Taken 6 | . . 1 . . . . 1 1 . . 1 . . 1 1 . . . Unknown Exits Taken 12 | 1 1 . 1 1 1 1 . . 1 1 . 1 1 . . 1 1 . Scrap Searched 12 | . . 1 . . . 6 . . . . . . . 2 . . 3 . Spaces Dug 109 | . 7 6 6 21 . . 9 . . . 4 5 2 . 25 . 14 10 Terrain Destroyed 455 | . 49 46 85 38 . . 31 . 16 1 61 40 10 . 32 . 18 28 Melee 24 | . . . . . . . 9 . . . . . 2 . . . 3 10 Projectile 170 | . . . . . . . . . . 1 60 39 8 . 32 . 15 15 AOE 256 | . 49 46 85 38 . . 22 . 16 . . . . . . . . . Terrain Rammed . | . . . . . . . . . . . . . . . . . . . Walls Destroyed . | . . . . . . . . . . . . . . . . . . . Machines Disabled . | . . . . . . . . . . . . . . . . . . . Actions | -11 -10 -10 -9 -9 -9 -9 -6 -6 -6 -6 -6 -5 -4 -4 -4 -4 -3 -3 --------- Run | Yrd Mat Min Mat Sto Rec Scr Fac Ext Cet Arc Hub Fac Fac Upp Upp Zhi Pro Res Total 16318 | 13 888 396 2069 681 633 1533 3141 1029 391 1009 616 922 573 174 338 169 424 1319 Wait 3244 | . 207 27 972 32 14 53 628 89 56 703 45 72 30 12 42 1 11 250 Move 11579 | 5 604 350 931 559 586 1447 2309 703 282 264 501 699 486 156 286 153 382 876 Hop . | . . . . . . . . . . . . . . . . . . . Pick Up 100 | . 5 . 14 7 3 9 20 6 7 1 . 11 3 . . . 3 11 Fast Attach 178 | 1 2 . 8 3 4 4 22 4 6 5 12 29 24 3 1 7 3 40 Attach 44 | 1 1 3 3 . . 1 . 5 4 3 7 4 3 . . . 1 8 Detach 18 | . . . 2 1 2 . . 2 3 1 3 1 . 1 . . . 2 Swap 101 | 2 9 4 18 10 2 . 21 3 1 5 2 4 4 . . 2 3 11 Drop 170 | 1 3 . 15 11 6 19 29 9 13 4 3 9 11 2 . 6 5 24 Fire 639 | 3 56 12 101 55 15 . 96 54 10 6 43 86 9 . 9 . 8 76 Melee 59 | . . . . 2 . . 13 . . 17 . . 2 . . . 8 17 Ram 1 | . . . . 1 . . . . . . . . . . . . . . Kick 4 | . . . . . . . . . . . . . . . . . . 4 Crush 7 | . 1 . 5 . 1 . . . . . . . . . . . . . Escape Stasis 35 | . . . . . . . 3 25 . . . 7 . . . . . . Rewire 122 | . . . . . . . . 121 . . . . 1 . . . . . Trap . | . . . . . . . . . . . . . . . . . . . Miscellaneous 17 | . . . . . . . . 8 9 . . . . . . . . . Route ------- -11/Scrapyard -10/Materials (discovered 5 exits: *Mat x3 / [*Min] / *Sub) -10/Mines (discovered 2 exits: *Mat x2) -9/Materials (discovered 6 exits: *Mat x3 / *Min x2 / *Sto) -9/Storage (discovered 2 exits: *Mat / *Rec) -9/Recycling (discovered 2 exits: [*Fac] / *Scr) -9/Scraptown (discovered 2 exits: *Fac x2) -6/Factory (discovered 8 exits: *Fac x4 / *Low x2 / *Ext x2) -6/Extension (discovered 2 exits: *Fac / *Cet) -6/Cetus (discovered 2 exits: *Fac / [*Arc]) -6/Archives (discovered 3 exits: *Fac / *Hub x2) -6/Hub_04(d) -5/Factory -4/Factory -4/Upper Caves -4/Upper Caves -4/Zhirov -3/Proximity Caves -3/Research History --------- Turn | Location | Event 10 | -11/Scrapyard | Discovered new exit (range 3) 23 | -11/Scrapyard | Entered Materials 206 | -10/Materials | Discovered new exit (range 11) 316 | -10/Materials | Build established: Mutant 487 | -10/Materials | Discovered new exit (range 11) 745 | -10/Materials | Discovered new exit (range 12) 901 | -10/Materials | Learned Storage garrison access intel 976 | -10/Materials | Identified exit to Materials 976 | -10/Materials | Identified exit to Subcaves 1054 | -10/Materials | Central database locked down 1174 | -10/Materials | Learned location of 2 exits from Materials 1197 | -10/Materials | Learned location of 2 exits from Subcaves 1324 | -10/Materials | Learned location of Storage (-9) 1379 | -10/Materials | Entered Mines 1380 | -10/Mines | Assembled infested the area 1463 | -10/Mines | Core integrity fell below 50% 1493 | -10/Mines | Learned Materials trap positions 1506 | -10/Mines | Found a hidden stash of uninstalled traps 1856 | -10/Mines | Entered Materials 1856 | -9/Materials | Evolved 2 slots: Utility x2 1857 | -9/Materials | Identified exit to Materials 1857 | -9/Materials | Identified exit to Mines 1858 | -9/Materials | Loaded intel: 25 trap records 2226 | -9/Materials | Build established: Scavenger-Mutant 2492 | -9/Materials | Discovered new exit (range 2) 2654 | -9/Materials | Discovered exit to Materials (range 5) 2745 | -9/Materials | Destroyed 11 combat bots 3001 | -9/Materials | Build established: Mutant 3187 | -9/Materials | Learned location of Zion (-6) 3228 | -9/Materials | Central database locked down 3248 | -9/Materials | Learned Materials trap positions 3298 | -9/Materials | Learned Storage stockpile data 3446 | -9/Materials | Learned Materials trap positions 4675 | -9/Materials | Entered Storage 4675 | -9/Storage | Accompanied by 2 allies 4677 | -9/Storage | Loaded intel: 1 garrison access location 4886 | -9/Storage | Garrison activated, responded to threat 4941 | -9/Storage | Assisted by bots powering up and referring to "LRC-V3" 5068 | -9/Storage | Discovered exit to Materials (range 16) 5097 | -9/Storage | Central database locked down 5232 | -9/Storage | Build established: Commander-Mutant 5378 | -9/Storage | Learned location of Armory (-3) 5475 | -9/Storage | First assault squad dispatched 5505 | -9/Storage | Used back door to open Recycling access 5505 | -9/Storage | Discovered new exit (range 5) 5516 | -9/Storage | Entered Recycling 5516 | -9/Recycling | Accompanied by 3 allies 5847 | -9/Recycling | Build established: Mutant 6072 | -9/Recycling | Learned location of 3 exits from Materials 6147 | -9/Recycling | Learned 2 Materials zone layouts 6200 | -9/Recycling | Discovered new exit (range 16) 6211 | -9/Recycling | Learned Storage security intel 6315 | -9/Recycling | Learned Materials garrison access intel 6355 | -9/Recycling | Learned 2 Materials zone layouts 6398 | -9/Recycling | Scanned before Scraplab entrance 6420 | -9/Recycling | Entered Scraplab 6433 | -9/Recycling | Discovered new exit (range 2) 6441 | -9/Recycling | Entered Scraptown 6441 | -9/Scraptown | Accompanied by 2 allies 6912 | -9/Scraptown | Discovered new exit (range 7) 7082 | -9/Scraptown | Visited Junk Repository 7116 | -9/Scraptown | Visited Assassins FH 7123 | -9/Scraptown | Visited Symbiants 7146 | -9/Scraptown | Visited Cyclists 7309 | -9/Scraptown | Visited Awakened 7325 | -9/Scraptown | Visited UFD Registry 7325 | -9/Scraptown | Registered with UFD as "Pipetalker" 7372 | -9/Scraptown | Visited Comm Corps 7592 | -9/Scraptown | Visited Botcube Research 7622 | -9/Scraptown | Visited Analyses Database 7786 | -9/Scraptown | Visited DA-N13 Charitable Foundation 7799 | -9/Scraptown | Found DCF Scrap (30 items) 7874 | -9/Scraptown | Found Botcube 7880 | -9/Scraptown | Botcube activated 7898 | -9/Scraptown | Botcube completed mutation into treaded form, armed with 2 guns. 7956 | -9/Scraptown | Visited Science Guys 8008 | -9/Scraptown | Visited Modified Component R&D 8054 | -9/Scraptown | Visited Scrap Suit Storage 8089 | -9/Scraptown | Visited Curators Association 8125 | -9/Scraptown | Visited Cartography Club 8229 | -9/Scraptown | Discovered new exit (range 5) 8329 | -9/Scraptown | Met Optimus 8329 | -9/Scraptown | Accepted into 0bPrime 8409 | -9/Scraptown | Entered Factory 8409 | -6/Factory | Accompanied by 3 allies 8409 | -6/Factory | Evolved 6 slots: Propulsion x1, Utility x3, Weapon x2 8462 | -6/Factory | Identified exit to Lower Caves 8462 | -6/Factory | Identified exit to Extension 8924 | -6/Factory | Build established: Scavenger-Tank 9495 | -6/Factory | Spotted B-75 Beast 9778 | -6/Factory | Watched by a mysterious "MATRIX" hacker. 10231 | -6/Factory | Loaded intel: 8 recycling unit locations 10431 | -6/Factory | Learned location of Protoforge (-2) 10645 | -6/Factory | Noticed a derelict Sapper rigging charges 10648 | -6/Factory | Garrison activated, responded to threat 10920 | -6/Factory | Build established: Scavenger-Gunner 11023 | -6/Factory | Central database locked down 11142 | -6/Factory | Learned 2 Lower Caves zone layouts 11201 | -6/Factory | Learned location of 1 exit from Extension 11250 | -6/Factory | Learned 2 Proximity Caves zone layouts 11367 | -6/Factory | Learned location of 2 exits from Upper Caves 11456 | -6/Factory | Learned Extension stockpile data 11515 | -6/Factory | Identified exit to Factory 11597 | -6/Factory | Destroyed 7 combat bots 11878 | -6/Factory | Repaired Gatling Laser 11930 | -6/Factory | Repaired Plasma Rifle+ 11981 | -6/Factory | Repaired Imp. Medium Treads 12033 | -6/Factory | Repaired Imp. Heavy Armor Plating 12193 | -6/Factory | Discovered exit to Factory (range 22) 12876 | -6/Factory | Repaired Plasma Rifle+ 12928 | -6/Factory | Repaired Plasma Rifle+ 13032 | -6/Factory | Entered Extension 13033 | -6/Extension | Identified exit to Cetus 13098 | -6/Extension | Loaded intel: 2 recycling unit locations 13163 | -6/Extension | Rescued a captive Derelict 13189 | -6/Extension | Rescued a captive Derelict 13226 | -6/Extension | Rescued A7 13376 | -6/Extension | Rescued a captive Derelict 13401 | -6/Extension | Build established: Hacker-Gunner 13695 | -6/Extension | Spotted B-75 Beast 13707 | -6/Extension | Destroyed B-75 Beast 13716 | -6/Extension | Spotted B-75 Beast 13737 | -6/Extension | Destroyed B-75 Beast 13896 | -6/Extension | Rescued a captive Derelict 13896 | -6/Extension | Rescued a captive Derelict 14140 | -6/Extension | Rescued a captive Derelict 14266 | -6/Extension | Build established: Commander-Gunner 14294 | -6/Extension | Discovered exit to Factory (range 10) 14396 | -6/Extension | Entered Cetus 14396 | -6/Cetus | Accompanied by 13 allies (A7) 14401 | -6/Cetus | Acquired a Cetus Manufacturing Module code from A7 14413 | -6/Cetus | Spotted Cetus Guard 14413 | -6/Cetus | Spotted Cetus Guard 14415 | -6/Cetus | Spotted Cetus Guard 14415 | -6/Cetus | Spotted Cetus Guard 14422 | -6/Cetus | Destroyed Cetus Guard 14422 | -6/Cetus | Destroyed Cetus Guard 14423 | -6/Cetus | Destroyed Cetus Guard 14424 | -6/Cetus | Destroyed Cetus Guard 14516 | -6/Cetus | Started Cetus Manufacturing Module 14541 | -6/Cetus | Manufactured an Enhanced Grunt 14547 | -6/Cetus | Escorted A7 to Cetus Mainframe 14566 | -6/Cetus | Manufactured an Enhanced Grunt 14591 | -6/Cetus | Manufactured an Enhanced Grunt 14616 | -6/Cetus | Manufactured an Enhanced Grunt 14641 | -6/Cetus | Manufactured an Enhanced Grunt 14644 | -6/Cetus | Discovered new exit (range 15) 14670 | -6/Cetus | Spotted Cetus Guard 14670 | -6/Cetus | Spotted Cetus Guard 14675 | -6/Cetus | Allies destroyed Cetus Guard 14675 | -6/Cetus | Spotted Cetus Guard 14682 | -6/Cetus | Destroyed Cetus Guard 14686 | -6/Cetus | Destroyed Cetus Guard 14686 | -6/Cetus | Spotted Cetus Guard 14687 | -6/Cetus | Allies destroyed Cetus Guard 14694 | -6/Cetus | Discovered exit to Factory (range 15) 14700 | -6/Cetus | Met Revision 17 14831 | -6/Cetus | Entered Archives 14831 | -6/Archives | Accompanied by 14 allies (A7) 14836 | -6/Archives | Received a hacking code to weaken MAIN.C 14878 | -6/Archives | Discovered exit to Factory (range 14) 14961 | -6/Archives | Discovered new exit (range 15) 14969 | -6/Archives | System corruption reached 10% 15188 | -6/Archives | Discovered new exit (range 13) 15627 | -6/Archives | Build established: Commander-Skirmisher 15960 | -6/Archives | Entered Hub_04(d) 15960 | -6/Hub_04(d) | Accompanied by 11 allies 16132 | -6/Hub_04(d) | Discovered exit to Factory (range 4) 16310 | -6/Hub_04(d) | First assault squad dispatched 16557 | -6/Hub_04(d) | Destroyed 10 combat bots 16668 | -6/Hub_04(d) | Network Hub disabled 16669 | -6/Hub_04(d) | Core integrity fell below 50% 16718 | -6/Hub_04(d) | Released all parts (6) 16724 | -6/Hub_04(d) | Spotted Lightning 16724 | -6/Hub_04(d) | Spotted Lightning 16743 | -6/Hub_04(d) | Core integrity fell below 20% 16745 | -6/Hub_04(d) | Spotted Lightning 16748 | -6/Hub_04(d) | Lost 9 parts (1p2n1u5w) 16748 | -6/Hub_04(d) | Entered Factory 16748 | -5/Factory | Evolved 2 slots: Propulsion x1, Weapon x1 17301 | -5/Factory | Build established: Scavenger-Gunner 17405 | -5/Factory | System corruption reached 10% 17435 | -5/Factory | Lost 5 parts (2n2u1w) 17478 | -5/Factory | Garrison activated, responded to threat 17773 | -5/Factory | Lost 9 parts (1p3n2u3w) 17892 | -5/Factory | Released all parts (8) 17895 | -5/Factory | Core integrity fell below 50% 17921 | -5/Factory | Discovered new exit (range 16) 17923 | -5/Factory | Lost 3 parts (1n1u1w) 17929 | -5/Factory | Entered another Factory area 17929 | -4/Factory | Evolved 2 slots: Utility x1, Weapon x1 17981 | -4/Factory | Scrapoid reinforcements arrived 18006 | -4/Factory | Central database locked down 18026 | -4/Factory | Allied Derelicts emerged from ambush trap array 18054 | -4/Factory | Found Corrupted Scrap Suit 18062 | -4/Factory | System corruption reached 10% 18065 | -4/Factory | P-70 Sage assimilated allied 04F01-D 18075 | -4/Factory | Scrapoid reinforcements arrived 18157 | -4/Factory | Lost 7 allies 18280 | -4/Factory | Lost 4 allies 18303 | -4/Factory | Lost 3 parts (1p2w) 18313 | -4/Factory | Build established: Scavenger-Scrapper 18405 | -4/Factory | Discovered new exit (range 8) 18413 | -4/Factory | Entered Upper Caves 18414 | -4/Upper Caves | Identified exit to Upper Caves 18572 | -4/Upper Caves | Entered another Upper Caves area 18573 | -4/Upper Caves | Identified exit to Zhirov 18829 | -4/Upper Caves | Attacked by a faux Warlord 18863 | -4/Upper Caves | Learned Research trap positions 18881 | -4/Upper Caves | Learned Research emergency access door positions 18900 | -4/Upper Caves | Entered Zhirov 18900 | -4/Zhirov | Discovered new exit (range 3) 18917 | -4/Zhirov | Met Zhirov 18947 | -4/Zhirov | Zhirov requested help retrieving the SGEMP Prototype 18969 | -4/Zhirov | Found Alien Artifact 18969 | -4/Zhirov | Identified Integrated Dissipator 18969 | -4/Zhirov | Installed Integrated Dissipator, increased core heat dissipation (+20) 19059 | -4/Zhirov | Entered Proximity Caves 19264 | -3/Proximity Caves | Build established: Scavenger-Executioner 19333 | -3/Proximity Caves | Crushed by falling debris 19342 | -3/Proximity Caves | Attracted the attention of an 0b10 checkpoint 19384 | -3/Proximity Caves | Lost 6 parts (2u4w) 19391 | -3/Proximity Caves | Discovered new exit (range 8) 19393 | -3/Proximity Caves | Entered Research 19393 | -3/Research | Evolved 2 slots: Power x1, Propulsion x1 19394 | -3/Research | Loaded intel: 76 trap records 19593 | -3/Research | Revision forces began assault on 0b10 19618 | -3/Research | Met up with Revision 17++ 19671 | -3/Research | Spotted B-86 Titan 19683 | -3/Research | Destroyed B-86 Titan 20093 | -3/Research | Research terminal network offline 20281 | -3/Research | Lost 6 parts (3n3w) 20384 | -3/Research | Spotted B-86 Titan 20669 | -3/Research | Found Unknown Protection 20669 | -3/Research | Identified Hvy. Reflective Plating 20671 | -3/Research | Spotted Striker 20694 | -3/Research | Destroyed Striker 20770 | -3/Research | Found Prototype Processor 20770 | -3/Research | Identified Exp. Melee Analysis Suite 20862 | -3/Research | Spotted Striker 20896 | -3/Research | Core integrity fell below 50% 20926 | -3/Research | Core integrity fell below 20% 20988 | -3/Research | Lost 25 parts (3p7n4u11w) 20998 | -3/Research | Destroyed by S-43 Plague with Heavy Machine Gun Last Messages --------------- 20919_ S-43 Plague destroyed. 20921_ Com. HERF Cannon+ destroyed. 20927_ Acquired Phase Gun. 20930_ Phase Gun destroyed. 20932_ Adv. Heat Sink destroyed. 20934_ Kicked S-43 Plague. 20936_ Kicked S-43 Plague out of the way. 20938_ Kicked S-43 Plague. 20942_ Myomer Leg destroyed. 20942_ Mni. Fusion Reactor destroyed. 20944_ Acquired 18 matter. 20946_ The unstable cave ceiling collapses. 20951_ Acquired Variable Charge Gun. 20957_ Variable Charge Gun destroyed. 20957_ Acquired 5 matter. 20971_ Acquired Plasma Rifle+. 20980_ The unstable cave ceiling collapses. 20981_ Acquired Lyr. Medium Armor Plating. 20988_ Xenon Bombardment Thruster melted. 20988_ S-43 Plague destroyed. Map ----- +----------------------------------------------------+ | ?############## #????????????????###?????# # | | ?# # ####????????????##"####### # | | ?# # + ##############"# | | ?# """ # # + """" ## | | ## """ # # ## """"" ## | | # """ # # ## """" ## | | # """ ####### ## """" ## | | # """ #????# # ## | | #""" """ #????# # ## * | | #"T """ ## ### + ## | | #" " #^^^^# ### ^ | | + % ###### # #?# " | | # = #????# # #?# "%" | | ########"######????# # #?# " ^ | | """ #????????# # #?# % %= | | "T" ########## ################ %= ^** | | " " ## * *[ | | ## !! ###### ### =%"## ^ *[ | | " ## !!== #??## # % # | | " ## #??# # # = # ^ % | | " ## #??# # ##] # | | [ *% ## = # ##### ## *#! =" | | %! !! ## % %* =! # || | | ! =%%! ## #=!=!%%!! = # || | | % ## #% s%!* ## ###^ || | | ### ## =%* @%= # # #?# | | #?# ## = % ##?# | | #?# #####;;###% =# ######## | | #?# !%* %= #![ ###?# | | #?# " %*#%= ! #?###+##+## | | #?# = +!!!%[ #?#^ ^ # | | #?# #%% ! #?# ^ # | | #################### * = ### ^ # | | ## #???????# # % #! + + ^ ^ # | | ## ########### ###;###;#######" # | | #?? # # % #?# ################# | | #??? # # #?# | | #???##+## # ### ###############??# | | #####*%!# + #?# # #???? | | /!* =!!=+ # * #?# #! #????# | | #####|/=# # %%### # """" #????? | | ##???##!## = # ! ### # """" #????? | | ??????#[## # # """" #????? | | ??????# ############ # """" #????? | | ??????# #??##??????# %%! + """" #????? | | ??????# #??????????# # #????? | | ??????# #??????????########* # #????? | | ??????# #?????#############% # #????? | | ??????# #?????# """"""" # # #????? | | ??????# #?????# """"""" # # [ #????? | +----------------------------------------------------+ Best States ------------- Heat Dissipation 116 Energy Generation 41 Energy Capacity 385 Matter Stores 300 Matter Capacity 300 Sight Range 22 Robot Scan Range 16 Terrain Scan Range 16 Terrain Scan Density 210 Base Temperature (-) 150 Armor Coverage 1200 Resistance: TH 25 Phase Shifting 10 Evasion (%) 80 Targeting Accuracy 16 Target Analysis 6 Recoil Reduction 2 Kinecelleration 40 Salvage Targeting 4 Offensive Hacking 14 Defensive Hacking 12 Item Schematics ----------------- Hcp. Storage Unit | -9/Storage | Hacked Recalibrator | -9/Storage | Hacked Gatling Laser | -9/Recycling | Hacked Adv. Coolant Injector | -6/Factory | Hacked Robot Schematics ------------------ None Fabricated ------------ Nothing Repaired ---------- Gatling Laser | 36% | -6/Factory Plasma Rifle | 26% | -6/Factory Imp. Medium Treads | 38% | -6/Factory Imp. Heavy Armor Plating | 56% | -6/Factory Plasma Rifle | 38% | -6/Factory Plasma Rifle | 62% | -6/Factory Studied --------- Com. Wheel | -9/Materials | Hacked Plasma Rifle | -6/Factory | Hacked Com. HERF Cannon | -4/Factory | Hacked Alien Tech Used ----------------- Integrated Dissipator Achievements -------------- Frankenstein Challenges ------------ None Game ------ Seed AntimatterSensorSabre Manual? 0 Play Time 03:01:09 Cumulative 373.6 hours Start 2026.03.28 @ 22:57:45 End 2026.03.29 @ 07:01:49 Sessions 7 Manual Loads 0 Difficulty Rogue Special Mode None Game No. 301 Rogue 265 Adventurer 36 Explorer 0 Win Type - Total 5 Types 2/0/0/1/0/0/0/2/0/0 Lore% 69 Gallery% 66 Achievement% 54 Wizard Run 0 Options --------- Layout 1 ASCII 0 Keyboard 0 Movement Numpad Keybinds 0 Fullscreen 1 Font 48/Smallcaps Map View 50x35 Zoom Use 0% Tactical HUD 1 Map Filters NONE Filters NONE Steam 1 RUN: 0defc6c9-a06a-4c34-8772-f210f55aabf7